fUST/lending_fUST_20250302
["ID","MTS","AMOUNT","RATE_DAILY","PERIOD"]
[355101163,1740892258660,-500.0,0.00024739,2]
[355101164,1740892258669,-500.0,0.00024739,2]
[355101165,1740892258679,-500.0,0.00024743,2]
[355101166,1740892258689,-3000.0,0.0002478,7]
[355101167,1740892258700,-5552.79915227,0.00024907,2]
[355101168,1740892258709,-3999.99,0.00025,2]
[355101169,1740892258719,-300.0,0.00025,2]
[355101170,1740892258730,-151.0,0.00025,2]
[355101171,1740892258741,-2217.56,0.00025002,2]
[355101172,1740892258751,-657.91,0.00025002,2]
[355101173,1740892258761,-500.0,0.00025002,2]
[355101174,1740892258771,-500.0,0.00025002,2]
[355101175,1740892258781,-1115.31,0.00025002,2]
[355101176,1740892258791,-681.02,0.00025002,2]
[355101177,1740892258802,-2638.3,0.00025002,2]
[355101178,1740892258812,-1596.94,0.00025002,2]
[355101179,1740892258836,-1242.03,0.00025002,2]
[355101180,1740892258850,-500.0,0.00025004,2]
[355101181,1740892258861,-500.0,0.00025004,2]
[355101182,1740892258872,-646.94,0.00025004,2]
[355101183,1740892258883,-1538.19,0.00025004,2]
[355101184,1740892258895,-1058.03,0.00025004,2]
[355101185,1740892258906,-500.0,0.00025004,2]
[355101186,1740892258916,-217.72,0.00025004,2]
[355101187,1740892258928,-500.0,0.00025004,2]
[355101188,1740892258938,-589.69,0.00025004,2]
[355101189,1740892258951,-5372.98,0.00025004,2]
[355101190,1740892258962,-1126.15,0.00025004,2]
[355101191,1740892258973,-559.39,0.00025004,2]
[355101192,1740892258984,-500.0,0.00025004,2]
[355101193,1740892258994,-500.0,0.00025004,2]
[355101194,1740892259006,-1992.57,0.00025004,2]
[355101195,1740892259016,-533.6,0.00025004,2]
[355101196,1740892259026,-500.0,0.00025004,2]
[355101197,1740892259037,-22341.25,0.00025004,2]
[355101198,1740892259047,-246.10901271,0.00025007,2]
[355101199,1740892259058,-500.0,0.00025007,2]
[355101200,1740892259068,-500.0,0.00025007,2]
[355101201,1740892259079,-695.36,0.00025007,2]
[355101202,1740892259091,-500.0,0.00025007,2]
[355101203,1740892259101,-500.0,0.00025007,2]
[355101204,1740892259114,-177.48775612,0.00025007,2]
[355101205,1740892259124,-500.0,0.00025007,2]
[355101206,1740892259134,-500.0,0.00025007,2]
[355101207,1740892259145,-569.64,0.00025007,2]
[355101208,1740892259158,-500.0,0.00025007,2]
[355101209,1740892259170,-533.7,0.00025007,2]
[355101210,1740892259182,-521.13,0.00025007,2]
[355101211,1740892259197,-500.0,0.00025007,2]
[355101212,1740892259207,-1066.58,0.00025007,2]
[355101213,1740892259218,-500.0,0.00025007,2]
[355101214,1740892259228,-500.0,0.0002501,2]
[355101215,1740892259238,-713.76,0.00025011,2]
[355101216,1740892259249,-1704.26,0.00025011,2]
[355101217,1740892259259,-500.0,0.00025011,2]
[355101218,1740892259269,-500.0,0.00025013,2]
[355101219,1740892259279,-828.84,0.00025013,2]
[355101220,1740892259290,-500.0,0.00025013,2]
[355101221,1740892259300,-500.0,0.00025013,2]
[355101222,1740892259310,-160.0,0.00025168,2]
[355101223,1740892259320,-2217.56,0.00025276,2]
[355101224,1740892259330,-657.91,0.00025276,2]
[355101225,1740892259340,-500.0,0.00025276,2]
[355101226,1740892259350,-500.0,0.00025276,2]
[355101227,1740892259360,-1115.31,0.00025276,2]
[355101228,1740892259371,-681.02,0.00025276,2]
[355101229,1740892259381,-2638.3,0.00025276,2]
[355101230,1740892259392,-1596.94,0.00025276,2]
[355101231,1740892259403,-1242.03,0.00025276,2]
[355101232,1740892259413,-500.0,0.00025278,2]
[355101233,1740892259424,-448.51,0.00025278,2]
[355101234,1740892259435,-646.94,0.00025278,2]
[355101235,1740892259446,-1538.19,0.00025278,2]
[355101236,1740892259462,-1058.03,0.00025278,2]
[355101237,1740892259474,-500.0,0.00025278,2]
[355101238,1740892259485,-500.0,0.00025278,2]
[355101239,1740892259496,-589.69,0.00025278,2]
[355101240,1740892259509,-5372.98,0.00025278,2]
[355101241,1740892259520,-1126.15,0.00025278,2]
[355101242,1740892259531,-559.39,0.00025278,2]
[355101243,1740892259543,-369.07,0.00025278,2]
[355101244,1740892259554,-500.0,0.00025278,2]
[355101245,1740892259565,-1992.57,0.00025278,2]
[355101246,1740892259577,-533.6,0.00025278,2]
[355101247,1740892259587,-500.0,0.00025278,2]
[355101248,1740892259598,-22341.25,0.00025278,2]
[355101249,1740892259609,-500.0,0.00025281,2]
[355101250,1740892259620,-500.0,0.00025281,2]
[355101251,1740892259631,-695.36,0.00025281,2]
[355101252,1740892259642,-500.0,0.00025281,2]
[355101253,1740892259653,-500.0,0.00025281,2]
[355101254,1740892259664,-500.0,0.00025281,2]
[355101255,1740892259675,-500.0,0.00025281,2]
[355101256,1740892259686,-569.64,0.00025281,2]
[355101257,1740892259696,-500.0,0.00025281,2]
[355101258,1740892259707,-533.7,0.00025281,2]
[355101259,1740892259718,-521.13,0.00025281,2]
[355101260,1740892259728,-500.0,0.00025281,2]
[355101261,1740892259738,-1066.58,0.00025281,2]
[355101262,1740892259749,-500.0,0.00025281,2]
[355101263,1740892259759,-238.5,0.00025284,2]
[355101264,1740892259770,-713.76,0.00025285,2]
[355101265,1740892259781,-1704.26,0.00025285,2]
[355101266,1740892259792,-500.0,0.00025285,2]
[355101267,1740892259802,-500.0,0.00025287,2]
[355101268,1740892259813,-828.84,0.00025287,2]
[355101269,1740892259823,-432.43,0.00025287,2]
[355101270,1740892259834,-500.0,0.00025287,2]
[355101271,1740892259846,-2217.56,0.0002555,2]
[355101272,1740892259857,-657.91,0.0002555,2]
[355101273,1740892259867,-500.0,0.0002555,2]
[355101274,1740892259878,-500.0,0.0002555,2]
[355101275,1740892259889,-1115.31,0.0002555,2]
[355101276,1740892259899,-681.02,0.0002555,2]
[355101277,1740892259910,-2638.3,0.0002555,2]
[355101278,1740892259920,-1596.94,0.0002555,2]
[355101279,1740892259931,-1242.03,0.0002555,2]
[355101280,1740892259941,-500.0,0.00025552,2]
[355101281,1740892259952,-646.94,0.00025552,2]
[355101282,1740892259962,-1538.19,0.00025552,2]
[355101283,1740892259973,-1058.03,0.00025552,2]
[355101284,1740892259983,-500.0,0.00025552,2]
[355101285,1740892259994,-531.26,0.00025552,2]
[355101286,1740892260003,-589.69,0.00025552,2]
[355101287,1740892260014,-5372.98,0.00025552,2]
[355101288,1740892260025,-1126.15,0.00025552,2]
[355101289,1740892260035,-559.39,0.00025552,2]
[355101290,1740892260046,-500.0,0.00025552,2]
[355101291,1740892260057,-1992.57,0.00025552,2]
[355101292,1740892260068,-533.6,0.00025552,2]
[355101293,1740892260079,-162.66,0.00025552,2]
[355101294,1740892260090,-22341.25,0.00025552,2]
[355101295,1740892260101,-263.53,0.00025555,2]
[355101296,1740892260114,-490.28,0.00025555,2]
[355101297,1740892260125,-695.36,0.00025555,2]
[355101298,1740892260135,-500.0,0.00025555,2]
[355101299,1740892260145,-500.0,0.00025555,2]
[355101300,1740892260158,-500.0,0.00025555,2]
[355101301,1740892260168,-500.0,0.00025555,2]
[355101302,1740892260179,-569.64,0.00025555,2]
[355101303,1740892260192,-500.0,0.00025555,2]
[355101304,1740892260202,-533.7,0.00025555,2]
[355101305,1740892260213,-521.13,0.00025555,2]
[355101306,1740892260224,-500.0,0.00025555,2]
[355101307,1740892260234,-1066.58,0.00025555,2]
[355101308,1740892260244,-500.0,0.00025555,2]
[355101309,1740892260254,-713.76,0.00025559,2]
[355101310,1740892260264,-1704.26,0.00025559,2]
[355101311,1740892260275,-500.0,0.00025559,2]
[355101312,1740892260285,-638.75,0.00025561,2]
[355101313,1740892260295,-828.84,0.00025561,2]
[355101314,1740892260306,-500.0,0.00025561,2]
[355101315,1740892260316,-3000.0,0.00025602,7]
[355101316,1740892260326,-160.0,0.00025603,2]
[355101317,1740892260337,-160.0,0.00025603,2]
[355101318,1740892260347,-19629.85965445,0.00025603,2]
[355101319,1740892260358,-944.07895368,0.00025669,2]
[355101320,1740892260368,-160.0,0.00025695,3]
[355101321,1740892260378,-194.25,0.000257,7]
[355101322,1740892260388,-2217.56,0.00025824,2]
[355101323,1740892260398,-657.91,0.00025824,2]
[355101324,1740892260408,-500.0,0.00025824,2]
[355101325,1740892260418,-500.0,0.00025824,2]
[355101326,1740892260428,-1115.31,0.00025824,2]
[355101327,1740892260440,-681.02,0.00025824,2]
[355101328,1740892260451,-2638.3,0.00025824,2]
[355101329,1740892260461,-1596.94,0.00025824,2]
[355101330,1740892260472,-1242.03,0.00025824,2]
[355101331,1740892260483,-500.0,0.00025826,2]
[355101332,1740892260494,-646.94,0.00025826,2]
[355101333,1740892260505,-1538.19,0.00025826,2]
[355101334,1740892260516,-1058.03,0.00025826,2]
[355101335,1740892260527,-500.0,0.00025826,2]
[355101336,1740892260537,-589.69,0.00025826,2]
[355101337,1740892260548,-5372.98,0.00025826,2]
[355101338,1740892260559,-1126.15,0.00025826,2]
[355101339,1740892260569,-559.39,0.00025826,2]
[355101340,1740892260580,-500.0,0.00025826,2]
[355101341,1740892260591,-1992.57,0.00025826,2]
[355101342,1740892260602,-533.6,0.00025826,2]
[355101343,1740892260612,-22341.25,0.00025826,2]
[355101344,1740892260622,-695.36,0.00025829,2]
[355101345,1740892260633,-500.0,0.00025829,2]
[355101346,1740892260644,-500.0,0.00025829,2]
[355101347,1740892260655,-500.0,0.00025829,2]
[355101348,1740892260665,-500.0,0.00025829,2]
[355101349,1740892260676,-569.64,0.00025829,2]
[355101350,1740892260687,-500.0,0.00025829,2]
[355101351,1740892260698,-533.7,0.00025829,2]
[355101352,1740892260709,-521.13,0.00025829,2]
[355101353,1740892260720,-500.0,0.00025829,2]
[355101354,1740892260731,-1066.58,0.00025829,2]
[355101355,1740892260740,-500.0,0.00025829,2]
[355101356,1740892260832,-713.76,0.00025833,2]
[355101357,1740892260843,-1704.26,0.00025833,2]
[355101358,1740892260855,-500.0,0.00025833,2]
[355101359,1740892260865,-828.84,0.00025835,2]
[355101360,1740892260875,-500.0,0.00025835,2]
[355101361,1740892260885,-587.0,0.0002597,2]
[355101362,1740892260896,-500.0,0.0002598,2]
[355101363,1740892260906,-500.0,0.00026,2]
[355101364,1740892260916,-160.0,0.00026,3]
[355101365,1740892260925,-150.0,0.00026,30]
[355101366,1740892260936,-160.0,0.00026,3]
[355101367,1740892260945,-160.0,0.00026,3]
[355101368,1740892260955,-19629.85965445,0.00026,3]
[355101369,1740892260966,-500.0,0.00026083,2]
[355101370,1740892260975,-2217.56,0.00026098,2]
[355101371,1740892260998,-657.91,0.00026098,2]
[355101372,1740892261010,-500.0,0.00026098,2]
[355101373,1740892261020,-500.0,0.00026098,2]
[355101374,1740892261031,-1115.31,0.00026098,2]
[355101375,1740892261042,-681.02,0.00026098,2]
[355101376,1740892261052,-2638.3,0.00026098,2]
[355101377,1740892261063,-1596.94,0.00026098,2]
[355101378,1740892261074,-1242.03,0.00026098,2]
[355101379,1740892261084,-500.0,0.000261,2]
[355101380,1740892261094,-646.94,0.000261,2]
[355101381,1740892261104,-1538.19,0.000261,2]
[355101382,1740892261118,-1058.03,0.000261,2]
[355101383,1740892261128,-231.92650609,0.000261,2]
[355101384,1740892261137,-589.69,0.000261,2]
[355101385,1740892261147,-5372.98,0.000261,2]
[355101386,1740892261158,-1126.15,0.000261,2]
[355101387,1740892261168,-559.39,0.000261,2]
[355101388,1740892261178,-500.0,0.000261,2]
[355101389,1740892261190,-1992.57,0.000261,2]
[355101390,1740892261200,-533.6,0.000261,2]
[355101391,1740892261210,-22341.25,0.000261,2]
[355101392,1740892261219,-695.36,0.00026103,2]
[355101393,1740892261229,-500.0,0.00026103,2]
[355101394,1740892261239,-252.99,0.00026103,2]
[355101395,1740892261248,-500.0,0.00026103,2]
[355101396,1740892261258,-500.0,0.00026103,2]
[355101397,1740892261267,-569.64,0.00026103,2]
[355101398,1740892261278,-500.0,0.00026103,2]
[355101399,1740892261288,-533.7,0.00026103,2]
[355101400,1740892261299,-521.13,0.00026103,2]
[355101401,1740892261310,-617.35,0.00026103,2]
[355101402,1740892261320,-1066.58,0.00026103,2]
[355101403,1740892261330,-500.0,0.00026103,2]
[355101404,1740892261339,-713.76,0.00026107,2]
[355101405,1740892261351,-1704.26,0.00026107,2]
[355101406,1740892261360,-500.0,0.00026107,2]
[355101407,1740892261371,-828.84,0.00026109,2]
[355101408,1740892261380,-191.58,0.00026109,2]
[355101409,1740892261390,-2217.56,0.00026372,2]
[355101410,1740892261400,-657.91,0.00026372,2]
[355101411,1740892261410,-500.0,0.00026372,2]
[355101412,1740892261419,-514.15,0.00026372,2]
[355101413,1740892261429,-1115.31,0.00026372,2]
[355101414,1740892261438,-681.02,0.00026372,2]
[355101415,1740892261448,-2638.3,0.00026372,2]
[355101416,1740892261458,-1596.94,0.00026372,2]
[355101417,1740892261468,-1242.03,0.00026372,2]
[355101418,1740892261477,-500.0,0.00026374,2]
[355101419,1740892261487,-646.94,0.00026374,2]
[355101420,1740892261497,-1538.19,0.00026374,2]
[355101421,1740892261507,-1058.03,0.00026374,2]
[355101422,1740892261517,-589.69,0.00026374,2]
[355101423,1740892261527,-5372.98,0.00026374,2]
[355101424,1740892261537,-1126.15,0.00026374,2]
[355101425,1740892261547,-559.39,0.00026374,2]
[355101426,1740892261557,-500.0,0.00026374,2]
[355101427,1740892261567,-1992.57,0.00026374,2]
[355101428,1740892261577,-533.6,0.00026374,2]
[355101429,1740892261587,-22341.25,0.00026374,2]
[355101430,1740892261598,-695.36,0.00026376,2]
[355101431,1740892261608,-500.0,0.00026376,2]
[355101432,1740892261623,-500.0,0.00026376,2]
[355101433,1740892261632,-500.0,0.00026376,2]
[355101434,1740892261643,-569.64,0.00026376,2]
[355101435,1740892261655,-500.0,0.00026376,2]
[355101436,1740892261665,-533.7,0.00026376,2]
[355101437,1740892261675,-521.13,0.00026376,2]
[355101438,1740892261685,-1066.58,0.00026376,2]
[355101439,1740892261696,-500.0,0.00026376,2]
[355101440,1740892261705,-713.76,0.00026381,2]
[355101441,1740892261716,-1704.26,0.00026381,2]
[355101442,1740892261725,-500.0,0.00026381,2]
[355101443,1740892261736,-828.84,0.00026383,2]
[355101444,1740892261746,-2175.0,0.000264,12]
[355101445,1740892261763,-160.0,0.00026421,4]
[355101446,1740892261773,-3000.0,0.00026424,7]
[355101447,1740892261784,-2217.56,0.00026646,2]
[355101448,1740892261794,-657.91,0.00026646,2]
[355101449,1740892261804,-500.0,0.00026646,2]
[355101450,1740892261814,-1115.31,0.00026646,2]
[355101451,1740892261824,-681.02,0.00026646,2]
[355101452,1740892261834,-2638.3,0.00026646,2]
[355101453,1740892261845,-1596.94,0.00026646,2]
[355101454,1740892261856,-1242.03,0.00026646,2]
[355101455,1740892261866,-500.0,0.00026648,2]
[355101456,1740892261876,-646.94,0.00026648,2]
[355101457,1740892261887,-1538.19,0.00026648,2]
[355101458,1740892261896,-1058.03,0.00026648,2]
[355101459,1740892261908,-589.69,0.00026648,2]
[355101460,1740892261918,-5372.98,0.00026648,2]
[355101461,1740892261929,-1126.15,0.00026648,2]
[355101462,1740892261939,-559.39,0.00026648,2]
[355101463,1740892261950,-500.0,0.00026648,2]
[355101464,1740892261961,-1992.57,0.00026648,2]
[355101465,1740892261971,-533.6,0.00026648,2]
[355101466,1740892261982,-22341.25,0.00026648,2]
[355101467,1740892261992,-695.36,0.0002665,2]
[355101468,1740892262002,-500.0,0.0002665,2]
[355101469,1740892262012,-458.62,0.0002665,2]
[355101470,1740892262023,-500.0,0.0002665,2]
[355101471,1740892262033,-569.64,0.0002665,2]
[355101472,1740892262043,-625.20279728,0.0002665,2]
[355101473,1740892262053,-533.7,0.0002665,2]
[355101474,1740892262064,-521.13,0.0002665,2]
[355101475,1740892262074,-1066.58,0.0002665,2]
[355101476,1740892262084,-500.0,0.0002665,2]
[355101477,1740892262094,-713.76,0.00026655,2]
[355101478,1740892262104,-1704.26,0.00026655,2]
[355101479,1740892262117,-500.0,0.00026655,2]
[355101480,1740892262127,-828.84,0.00026657,2]
[355101481,1740892262138,-2217.56,0.0002692,2]
[355101482,1740892262148,-657.91,0.0002692,2]
[355101483,1740892262158,-275.85486307,0.0002692,2]
[355101484,1740892262168,-1115.31,0.0002692,2]
[355101485,1740892262178,-681.02,0.0002692,2]
[355101486,1740892262191,-2638.3,0.0002692,2]
[355101487,1740892262201,-1596.94,0.0002692,2]
[355101488,1740892262213,-1242.03,0.0002692,2]
[355101489,1740892262223,-500.0,0.00026922,2]
[355101490,1740892262234,-646.94,0.00026922,2]
[355101491,1740892262244,-1538.19,0.00026922,2]
[355101492,1740892262254,-1058.03,0.00026922,2]
[355101493,1740892262266,-589.69,0.00026922,2]
[355101494,1740892262278,-5372.98,0.00026922,2]
[355101495,1740892262288,-1126.15,0.00026922,2]
[355101496,1740892262298,-559.39,0.00026922,2]
[355101497,1740892262308,-500.0,0.00026922,2]
[355101498,1740892262318,-1992.57,0.00026922,2]
[355101499,1740892262328,-533.6,0.00026922,2]
[355101500,1740892262338,-22341.25,0.00026922,2]
[355101501,1740892262347,-695.36,0.00026924,2]
[355101502,1740892262358,-434.4,0.00026924,2]
[355101503,1740892262367,-644.71,0.00026924,2]
[355101504,1740892262378,-569.64,0.00026924,2]
[355101505,1740892262388,-533.7,0.00026924,2]
[355101506,1740892262398,-521.13,0.00026924,2]
[355101507,1740892262407,-1066.58,0.00026924,2]
[355101508,1740892262417,-500.0,0.00026924,2]
[355101509,1740892262427,-713.76,0.00026929,2]
[355101510,1740892262437,-1704.26,0.00026929,2]
[355101511,1740892262446,-500.0,0.00026929,2]
[355101512,1740892262456,-828.84,0.00026931,2]
[355101513,1740892262466,-160.0,0.00027,10]
[355101514,1740892262476,-160.0,0.00027,10]
[355101515,1740892262486,-151.0,0.00027,2]
[355101516,1740892262495,-2684.09,0.00027,2]
[355101517,1740892262506,-12622.6036444,0.00027,10]
[355101518,1740892266200,-500.0,0.00022271,2]
[355101519,1740892266210,-1497.09520622,0.00024658,2]
[355101520,1740892266220,-1497.09520622,0.00024658,2]
[355101521,1740892266230,-1497.09520622,0.00024658,2]
[355101522,1740892266240,-2138.35723554,0.00027,10]
[355101523,1740892266364,-307.57923605,0.00027,10]
[355101524,1740892266571,-500.0,0.00022267,2]
[355101525,1740892266582,-500.0,0.00022541,2]
[355101526,1740892266591,-500.0,0.00022541,2]
[355101527,1740892266601,-500.0,0.00022815,2]
[355101528,1740892266611,-500.0,0.00022815,2]
[355101529,1740892266620,-500.0,0.00023089,2]
[355101530,1740892266630,-500.0,0.0002336,2]
[355101531,1740892266640,-500.0,0.00023363,2]
[355101532,1740892266649,-500.0,0.00023634,2]
[355101533,1740892266659,-500.0,0.00023637,2]
[355101534,1740892266669,-500.0,0.00023908,2]
[355101535,1740892266679,-500.0,0.00024182,2]
[355101536,1740892266688,-500.0,0.00024456,2]
[355101537,1740892266698,-1497.09520622,0.00024658,2]
[355101538,1740892266707,-1497.09520622,0.00024658,2]
[355101539,1740892266717,-1497.09520622,0.00024658,2]
[355101540,1740892266726,-500.0,0.0002473,2]
[355101541,1740892266737,-500.0,0.00025004,2]
[355101542,1740892266746,-19629.85965445,0.00026,3]
[355101543,1740892266759,-4561.31953846,0.00027,10]
[355101544,1740892266769,-19629.85965445,0.00027,10]
[355101545,1740892266779,-160.0,0.00027146,5]
[355101546,1740892266790,-2217.56,0.00027194,2]
[355101547,1740892266800,-657.91,0.00027194,2]
[355101548,1740892266810,-1115.31,0.00027194,2]
[355101549,1740892266820,-681.02,0.00027194,2]
[355101550,1740892266830,-2638.3,0.00027194,2]
[355101551,1740892266841,-1596.94,0.00027194,2]
[355101552,1740892266850,-1242.03,0.00027194,2]
[355101553,1740892266860,-646.94,0.00027196,2]
[355101554,1740892266870,-1538.19,0.00027196,2]
[355101555,1740892266880,-1058.03,0.00027196,2]
[355101556,1740892266891,-589.69,0.00027196,2]
[355101557,1740892266901,-5372.98,0.00027196,2]
[355101558,1740892266910,-1126.15,0.00027196,2]
[355101559,1740892266921,-559.39,0.00027196,2]
[355101560,1740892266931,-500.0,0.00027196,2]
[355101561,1740892266941,-1992.57,0.00027196,2]
[355101562,1740892266951,-533.6,0.00027196,2]
[355101563,1740892266961,-22341.25,0.00027196,2]
[355101564,1740892266973,-695.36,0.00027198,2]
[355101565,1740892266983,-569.64,0.00027198,2]
[355101566,1740892266993,-533.7,0.00027198,2]
[355101567,1740892267003,-521.13,0.00027198,2]
[355101568,1740892267013,-1066.58,0.00027198,2]
[355101569,1740892267023,-500.0,0.00027198,2]
[355101570,1740892267033,-713.76,0.00027203,2]
[355101571,1740892267044,-1704.26,0.00027203,2]
[355101572,1740892267054,-500.0,0.00027203,2]
[355101573,1740892267064,-828.84,0.00027205,2]
[355101574,1740892267074,-3000.0,0.00027246,7]
[355101575,1740892267083,-500.0,0.00027279,2]
[355101576,1740892267093,-944.07895368,0.00027285,2]
[355101577,1740892267102,-397.0,0.0002733,2]
[355101578,1740892267114,-998.84,0.00027397,2]
[355101579,1740892267124,-998.84,0.00027397,2]
[355101580,1740892267134,-998.84,0.00027397,2]
[355101581,1740892267144,-998.84,0.00027397,2]
[355101582,1740892267154,-998.84,0.00027397,2]
[355101583,1740892267163,-998.84,0.00027397,2]
[355101584,1740892267173,-998.84,0.00027397,2]
[355101585,1740892267184,-499.42537257,0.00027397,2]
[355101586,1740892267198,-499.41462743,0.00027397,2]
[355101587,1740892267208,-998.84,0.00027397,2]
[355101588,1740892267219,-998.84,0.00027397,2]
[355101589,1740892267229,-503.90537257,0.00027397,2]
[355101590,1740892267611,-41.05393128,0.00021988,2]
[355101591,1740892272151,-458.94606872,0.00021988,2]
[355101592,1740892272162,-500.0,0.00021988,2]
[355101593,1740892272173,-500.0,0.00022262,2]
[355101594,1740892272183,-510.06,0.00022262,2]
[355101595,1740892272195,-500.0,0.00022536,2]
[355101596,1740892272206,-328.2,0.0002281,2]
[355101597,1740892272216,-500.0,0.00025278,2]
[355101598,1740892272226,-500.0,0.00025552,2]
[355101599,1740892272236,-500.0,0.00025826,2]
[355101600,1740892272246,-500.0,0.000261,2]
[355101601,1740892272256,-500.0,0.00026374,2]
[355101602,1740892272266,-500.0,0.00026648,2]
[355101603,1740892272275,-609.28,0.00026922,2]
[355101604,1740892272285,-1000.0,0.00027452,5]
[355101605,1740892272295,-1000.0,0.00027452,5]
[355101606,1740892272306,-1000.0,0.00027452,5]
[355101607,1740892272316,-2217.56,0.00027468,2]
[355101608,1740892272327,-657.91,0.00027468,2]
[355101609,1740892272338,-1115.31,0.00027468,2]
[355101610,1740892272348,-681.02,0.00027468,2]
[355101611,1740892272358,-2638.3,0.00027468,2]
[355101612,1740892272368,-1596.94,0.00027468,2]
[355101613,1740892272378,-1242.03,0.00027468,2]
[355101614,1740892272389,-646.94,0.0002747,2]
[355101615,1740892272399,-1538.19,0.0002747,2]
[355101616,1740892272410,-1058.03,0.0002747,2]
[355101617,1740892272420,-589.69,0.0002747,2]
[355101618,1740892272430,-5372.98,0.0002747,2]
[355101619,1740892272440,-1126.15,0.0002747,2]
[355101620,1740892272451,-559.39,0.0002747,2]
[355101621,1740892272461,-306.67,0.0002747,2]
[355101622,1740892272471,-595.86498054,0.0002747,2]
[355101623,1740892332988,52.51803946,0.00021114,2]
[355101624,1740892333010,203.80152963,0.00021114,2]
[355101625,1740892432975,160.0,0.0002,3]
[355101626,1740892691031,639.28,0.00022,14]
[355101627,1740892755595,569.64,0.00022,14]
[355101628,1740892935860,1069.64,0.00022,14]
[355101629,1740893061476,160.0,0.0002,3]
[355101656,1740893149165,-157.7357105,0.00020976,2]
[355101657,1740893149191,-179.844155,0.00021046,2]
[355101658,1740893149216,-300.0,0.00021113,2]
[355101659,1740893149240,-24643.68043091,0.00021114,2]
[355101660,1740893149263,-500.0,0.00021917,2]
[355101661,1740893149287,-500.0,0.00021917,2]
[355101662,1740893149311,-173.57,0.00021988,2]
[355101663,1740893149334,-500.0,0.00021992,2]
[355101664,1740893149358,-500.0,0.00021992,2]
[355101665,1740893149397,-500.0,0.00021992,2]
[355101666,1740893149424,-500.0,0.00021993,2]
[355101667,1740893149447,-500.0,0.00021993,2]
[355101668,1740893149472,-500.0,0.00021993,2]
[355101669,1740893149497,-500.0,0.00021993,2]
[355101670,1740893149520,-500.0,0.00021993,2]
[355101671,1740893149544,-500.0,0.00021993,2]
[355101672,1740893149569,-500.0,0.00021993,2]
[355101673,1740893149592,-500.0,0.00021993,2]
[355101674,1740893149615,-500.0,0.00021993,2]
[355101675,1740893149637,-505.74900511,0.00021993,2]
[355101676,1740893149661,-500.0,0.00021993,2]
[355101677,1740893149685,-500.0,0.00021993,2]
[355101678,1740893149709,-500.0,0.00021993,2]
[355101679,1740893149733,-500.0,0.00021993,2]
[355101680,1740893149755,-500.0,0.00021993,2]
[355101681,1740893149777,-500.0,0.00021993,2]
[355101682,1740893149800,-500.0,0.00021993,2]
[355101683,1740893149821,-500.0,0.00021993,2]
[355101684,1740893149844,-500.0,0.00021993,2]
[355101685,1740893149865,-500.0,0.00021993,2]
[355101686,1740893149888,-500.0,0.00021995,2]
[355101687,1740893149911,-500.0,0.00021995,2]
[355101688,1740893149933,-500.0,0.00021995,2]